[Event "December 12 Late 2023"]
[Site "https://www.chess.com"]
[Date "2023.12.12"]
[Round "2"]
[White "Rodriguez Fontecha, Marcos"]
[Black "Rastbod, Ali"]
[Result "0-1"]
[Board "55"]
[TimeControl "180+1"]
[WhiteFideId "2256576"]
[BlackFideId "12567477"]
[WhiteElo "2475"]
[BlackElo "2748"]
[WhiteTeam "ESP"]
[BlackTeam "IRI"]
[WhiteClock "0:00:00"]
[BlackClock "0:00:09"]

1. d4 {[%clk 0:03:00]}  Nf6 {[%clk 0:02:59]} 2. Nf3 {[%clk 0:03:00]}  b6 {[%clk 0:02:59]} 3. g3 {[%clk 0:03:00]}  Bb7 {[%clk 0:02:59]} 4. Bg2 {[%clk 0:03:01]}  g6 {[%clk 0:03:00]} 5. O-O {[%clk 0:03:01]}  Bg7 {[%clk 0:03:01]} 6. c4 {[%clk 0:03:01]}  O-O {[%clk 0:03:01]} 7. Qc2 {[%clk 0:02:59]}  e6 {[%clk 0:02:44]} 8. Nc3 {[%clk 0:02:59]}  d5 {[%clk 0:02:40]} 9. b3 {[%clk 0:02:57]}  Nbd7 {[%clk 0:02:37]} 10. Bb2 {[%clk 0:02:57]}  Re8 {[%clk 0:02:36]} 11. Rfd1 {[%clk 0:02:52]}  Rc8 {[%clk 0:02:35]} 12. e3 {[%clk 0:02:47]}  a6 {[%clk 0:02:32]} 13. a4 {[%clk 0:02:47]}  c5 {[%clk 0:02:27]} 14. Qe2 {[%clk 0:02:42]}  Qc7 {[%clk 0:02:21]} 15. Rac1 {[%clk 0:02:41]}  Qb8 {[%clk 0:02:21]} 16. Ba3 {[%clk 0:02:23]}  Qa8 {[%clk 0:02:14]} 17. Ne1 {[%clk 0:02:21]}  cxd4 {[%clk 0:02:08]} 18. exd4 {[%clk 0:02:22]}  dxc4 {[%clk 0:02:08]} 19. bxc4 {[%clk 0:02:15]}  Bxg2 {[%clk 0:02:06]} 20. Nxg2 {[%clk 0:02:16]}  Rc7 {[%clk 0:02:01]} 21. Bd6 {[%clk 0:02:11]}  Rc6 {[%clk 0:02:00]} 22. Bf4 {[%clk 0:02:03]}  Rec8 {[%clk 0:02:00]} 23. Na2 {[%clk 0:02:03]}  Ne8 {[%clk 0:01:42]} 24. Nb4 {[%clk 0:01:59]}  Rd6 {[%clk 0:01:31]} 25. Bxd6 {[%clk 0:01:58]}  Nxd6 {[%clk 0:01:32]} 26. c5 {[%clk 0:01:51]}  Nf5 {[%clk 0:01:31]} 27. c6 {[%clk 0:01:48]}  Nf6 {[%clk 0:01:07]} 28. Qxa6 {[%clk 0:01:43]}  Qxa6 {[%clk 0:01:06]} 29. Nxa6 {[%clk 0:01:44]}  Nd5 {[%clk 0:01:07]} 30. Rc4 {[%clk 0:01:39]}  Nd6 {[%clk 0:01:00]} 31. Rc2 {[%clk 0:01:34]}  Ra8 {[%clk 0:00:56]} 32. c7 {[%clk 0:01:29]}  Nc8 {[%clk 0:00:55]} 33. Nb8 {[%clk 0:01:23]}  Rxa4 {[%clk 0:00:55]} 34. Ne3 {[%clk 0:01:18]}  Bxd4 {[%clk 0:00:30]} 35. Nxd5 {[%clk 0:01:16]}  exd5 {[%clk 0:00:31]} 36. Rcd2 {[%clk 0:01:09]}  Be5 {[%clk 0:00:27]} 37. Rxd5 {[%clk 0:00:50]}  Bxc7 {[%clk 0:00:27]} 38. Rc1 {[%clk 0:00:47]}  Ne7 {[%clk 0:00:20]} 39. Rd7 {[%clk 0:00:27]}  Bxb8 {[%clk 0:00:20]} 40. Rd8+ {[%clk 0:00:19]}  Kg7 {[%clk 0:00:20]} 41. Rxb8 {[%clk 0:00:20]}  Rb4 {[%clk 0:00:20]} 42. Rb7 {[%clk 0:00:20]}  Nd5 {[%clk 0:00:18]} 43. Rd1 {[%clk 0:00:20]}  Nf6 {[%clk 0:00:18]} 44. Ra1 {[%clk 0:00:19]}  Ne4 {[%clk 0:00:15]} 45. Rd7 {[%clk 0:00:18]}  Nc5 {[%clk 0:00:14]} 46. Re7 {[%clk 0:00:17]}  Na4 {[%clk 0:00:09]} 47. Rd1 {[%clk 0:00:17]}  Rb5 {[%clk 0:00:09]} 48. g4 {[%clk 0:00:16]}  Nc5 {[%clk 0:00:06]} 49. Ra1 {[%clk 0:00:15]}  Rb4 {[%clk 0:00:05]} 50. h3 {[%clk 0:00:14]}  Rf4 {[%clk 0:00:06]} 51. Raa7 {[%clk 0:00:14]}  Rf6 {[%clk 0:00:06]} 52. Ra8 {[%clk 0:00:13]}  Ne6 {[%clk 0:00:06]} 53. Rb8 {[%clk 0:00:13]}  Ng5 {[%clk 0:00:06]} 54. Kg2 {[%clk 0:00:12]}  Nf3 {[%clk 0:00:05]} 55. Rxb6 {[%clk 0:00:11]}  Nh4+ {[%clk 0:00:04]} 56. Kf1 {[%clk 0:00:09]}  Rxb6 {[%clk 0:00:04]} 57. Ra7 {[%clk 0:00:05]}  Rf6 {[%clk 0:00:04]} 58. Ra5 {[%clk 0:00:05]}  Nf3 {[%clk 0:00:04]} 59. Kg2 {[%clk 0:00:05]}  Ne1+ {[%clk 0:00:04]} 60. Kf1 {[%clk 0:00:05]}  Nd3 {[%clk 0:00:05]} 61. Ra2 {[%clk 0:00:04]}  Rd6 {[%clk 0:00:05]} 62. Kg2 {[%clk 0:00:05]}  Nf4+ {[%clk 0:00:05]} 63. Kg3 {[%clk 0:00:04]}  Ne6 {[%clk 0:00:06]} 64. h4 {[%clk 0:00:05]}  Rd3+ {[%clk 0:00:06]} 65. Kh2 {[%clk 0:00:04]}  h5 {[%clk 0:00:07]} 66. gxh5 {[%clk 0:00:04]}  gxh5 {[%clk 0:00:08]} 67. Ra5 {[%clk 0:00:05]}  Kg6 {[%clk 0:00:07]} 68. Re5 {[%clk 0:00:03]}  Rf3 {[%clk 0:00:07]} 69. Kg2 {[%clk 0:00:03]}  Rf5 {[%clk 0:00:07]} 70. Re1 {[%clk 0:00:04]}  Nf4+ {[%clk 0:00:07]} 71. Kg3 {[%clk 0:00:04]}  Nd5 {[%clk 0:00:08]} 72. Rg1 {[%clk 0:00:04]}  Kf6 {[%clk 0:00:08]} 73. Rd1 {[%clk 0:00:04]}  Nf4 {[%clk 0:00:08]} 74. Rd8 {[%clk 0:00:04]}  Ng6 {[%clk 0:00:08]} 75. Rd6+ {[%clk 0:00:04]}  Kg7 {[%clk 0:00:08]} 76. Rd1 {[%clk 0:00:05]}  Rf4 {[%clk 0:00:09]} 77. Rd5 {[%clk 0:00:06]}  Rg4+ {[%clk 0:00:09]} 78. Kf3 {[%clk 0:00:05]}  Rxh4 {[%clk 0:00:09]} 79. Kg3 {[%clk 0:00:05]}  Rg4+ {[%clk 0:00:09]} 80. Kh3 {[%clk 0:00:00]}  Nf4+ {[%clk 0:00:09]} 0-1

[Event "December 12 Late 2023"]
[Site "https://www.chess.com"]
[Date "2023.12.12"]
[Round "2"]
[White "Bolourchifard, Farzad"]
[Black "Olsson, William"]
[Result "1-0"]
[Board "59"]
[TimeControl "180+1"]
[WhiteFideId "12510084"]
[BlackFideId "1741721"]
[WhiteElo "2732"]
[BlackElo "2404"]
[WhiteTeam "IRI"]
[BlackTeam "SWE"]
[WhiteClock "0:00:20"]
[BlackClock "0:00:08"]

1. d4 {[%clk 0:03:00]}  d5 {[%clk 0:02:59]} 2. Nf3 {[%clk 0:03:01]}  Nf6 {[%clk 0:02:59]} 3. c4 {[%clk 0:03:01]}  c6 {[%clk 0:03:00]} 4. Nc3 {[%clk 0:03:02]}  e6 {[%clk 0:03:00]} 5. Bg5 {[%clk 0:03:02]}  h6 {[%clk 0:03:00]} 6. Bxf6 {[%clk 0:03:02]}  Qxf6 {[%clk 0:03:00]} 7. e3 {[%clk 0:03:03]}  Nd7 {[%clk 0:03:00]} 8. cxd5 {[%clk 0:03:02]}  exd5 {[%clk 0:03:00]} 9. Bd3 {[%clk 0:03:03]}  Bd6 {[%clk 0:02:59]} 10. O-O {[%clk 0:03:01]}  O-O {[%clk 0:02:55]} 11. Rb1 {[%clk 0:03:02]}  Qe7 {[%clk 0:02:52]} 12. a3 {[%clk 0:02:46]}  a5 {[%clk 0:02:51]} 13. Qc2 {[%clk 0:02:35]}  Nf6 {[%clk 0:02:49]} 14. Bf5 {[%clk 0:02:30]}  Bxf5 {[%clk 0:02:29]} 15. Qxf5 {[%clk 0:02:31]}  Rfe8 {[%clk 0:02:20]} 16. Rfc1 {[%clk 0:02:29]}  Ne4 {[%clk 0:02:00]} 17. Nxe4 {[%clk 0:02:22]}  dxe4 {[%clk 0:02:01]} 18. Nd2 {[%clk 0:02:19]}  g6 {[%clk 0:02:01]} 19. Qh3 {[%clk 0:02:13]}  h5 {[%clk 0:02:00]} 20. Nc4 {[%clk 0:01:29]}  Bc7 {[%clk 0:01:50]} 21. b4 {[%clk 0:01:29]}  axb4 {[%clk 0:01:47]} 22. axb4 {[%clk 0:01:30]}  Ra4 {[%clk 0:01:02]} 23. b5 {[%clk 0:01:06]}  cxb5 {[%clk 0:00:46]} 24. Rxb5 {[%clk 0:01:07]}  Rb4 {[%clk 0:00:44]} 25. Rxb4 {[%clk 0:00:44]}  Qxb4 {[%clk 0:00:45]} 26. Qd7 {[%clk 0:00:42]}  Re7 {[%clk 0:00:46]} 27. Qc8+ {[%clk 0:00:39]}  Kg7 {[%clk 0:00:41]} 28. g3 {[%clk 0:00:35]}  b5 {[%clk 0:00:34]} 29. Na3 {[%clk 0:00:19]}  Bxg3 {[%clk 0:00:12]} 30. hxg3 {[%clk 0:00:20]}  Qxa3 {[%clk 0:00:12]} 31. Rb1 {[%clk 0:00:21]}  b4 {[%clk 0:00:11]} 32. Qb8 {[%clk 0:00:21]}  Qa2 {[%clk 0:00:10]} 33. Qxb4 {[%clk 0:00:21]}  Qe2 {[%clk 0:00:10]} 34. Qxe7 {[%clk 0:00:20]}  h4 {[%clk 0:00:09]} 35. Qxh4 {[%clk 0:00:20]}  Qxe3 {[%clk 0:00:08]} 36. fxe3 {[%clk 0:00:20]} 1-0

[Event "December 12 Late 2023"]
[Site "https://www.chess.com"]
[Date "2023.12.12"]
[Round "2"]
[White "Cardoso Cardoso, Jose Gabriel"]
[Black "NovakRatko"]
[Result "1-0"]
[Board "60"]
[TimeControl "180+1"]
[WhiteFideId "4430492"]
[WhiteElo "2724"]
[BlackElo "2389"]
[WhiteTeam "COL"]
[WhiteClock "0:00:44"]
[BlackClock "0:01:37"]

1. d4 {[%clk 0:03:00]}  d5 {[%clk 0:02:58]} 2. Nc3 {[%clk 0:02:57]}  c5 {[%clk 0:02:57]} 3. e4 {[%clk 0:02:54]}  dxe4 {[%clk 0:02:55]} 4. d5 {[%clk 0:02:51]}  Nf6 {[%clk 0:02:55]} 5. f3 {[%clk 0:02:46]}  exf3 {[%clk 0:02:51]} 6. Nxf3 {[%clk 0:02:47]}  a6 {[%clk 0:02:51]} 7. Bg5 {[%clk 0:02:41]}  e6 {[%clk 0:02:51]} 8. dxe6 {[%clk 0:02:38]}  Qxd1+ {[%clk 0:02:50]} 9. Rxd1 {[%clk 0:02:37]}  Bxe6 {[%clk 0:02:50]} 10. Bxf6 {[%clk 0:02:34]}  gxf6 {[%clk 0:02:50]} 11. Nd5 {[%clk 0:02:34]}  Bxd5 {[%clk 0:02:40]} 12. Rxd5 {[%clk 0:02:35]}  Nd7 {[%clk 0:02:30]} 13. Bd3 {[%clk 0:02:31]}  O-O-O {[%clk 0:02:30]} 14. Bf5 {[%clk 0:02:27]}  Kc7 {[%clk 0:02:28]} 15. O-O {[%clk 0:02:16]}  Ne5 {[%clk 0:02:25]} 16. Rxd8 {[%clk 0:02:12]}  Nxf3+ {[%clk 0:02:22]} 17. Rxf3 {[%clk 0:02:12]}  Kxd8 {[%clk 0:02:23]} 18. Be4 {[%clk 0:02:11]}  Be7 {[%clk 0:02:16]} 19. Bxb7 {[%clk 0:02:08]}  a5 {[%clk 0:02:16]} 20. Bd5 {[%clk 0:02:05]}  h5 {[%clk 0:02:07]} 21. Bxf7 {[%clk 0:01:57]}  Kc7 {[%clk 0:02:07]} 22. Kf2 {[%clk 0:01:37]}  Rh6 {[%clk 0:02:05]} 23. h4 {[%clk 0:01:30]}  f5 {[%clk 0:01:56]} 24. g3 {[%clk 0:01:28]}  Rf6 {[%clk 0:01:56]} 25. Bxh5 {[%clk 0:01:27]}  f4 {[%clk 0:01:57]} 26. Rxf4 {[%clk 0:01:07]}  Rxf4+ {[%clk 0:01:55]} 27. gxf4 {[%clk 0:01:08]}  Bxh4+ {[%clk 0:01:55]} 28. Ke3 {[%clk 0:01:08]}  Kd6 {[%clk 0:01:55]} 29. Ke4 {[%clk 0:01:03]}  Bf6 {[%clk 0:01:55]} 30. b3 {[%clk 0:01:02]}  Bc3 {[%clk 0:01:53]} 31. Be2 {[%clk 0:01:01]}  Bb2 {[%clk 0:01:54]} 32. Bc4 {[%clk 0:01:00]}  Bc3 {[%clk 0:01:54]} 33. Be2 {[%clk 0:00:54]}  Bb2 {[%clk 0:01:53]} 34. a4 {[%clk 0:00:54]}  Bc3 {[%clk 0:01:53]} 35. Kd3 {[%clk 0:00:54]}  Ba1 {[%clk 0:01:46]} 36. Kc4 {[%clk 0:00:53]}  Bd4 {[%clk 0:01:42]} 37. f5 {[%clk 0:00:46]}  Kc6 {[%clk 0:01:41]} 38. Bf3+ {[%clk 0:00:45]}  Kb6 {[%clk 0:01:41]} 39. Kd5 {[%clk 0:00:45]}  Bb2 {[%clk 0:01:37]} 40. Ke6 {[%clk 0:00:44]} 1-0

[Event "December 12 Late 2023"]
[Site "https://www.chess.com"]
[Date "2023.12.12"]
[Round "2"]
[White "Storn, Justin"]
[Black "Timmermans, Mark"]
[Result "0-1"]
[Board "62"]
[TimeControl "180+1"]
[WhiteFideId "30922720"]
[BlackFideId "1026399"]
[WhiteElo "2365"]
[BlackElo "2709"]
[WhiteTeam "USA"]
[BlackTeam "NED"]
[WhiteClock "0:00:00"]
[BlackClock "0:00:03"]

1. e4 {[%clk 0:03:00]}  e5 {[%clk 0:02:59]} 2. Nc3 {[%clk 0:03:01]}  Nf6 {[%clk 0:02:59]} 3. f4 {[%clk 0:03:01]}  d5 {[%clk 0:02:59]} 4. fxe5 {[%clk 0:03:01]}  Nxe4 {[%clk 0:03:00]} 5. Qf3 {[%clk 0:03:02]}  f5 {[%clk 0:03:00]} 6. d4 {[%clk 0:02:56]}  c5 {[%clk 0:02:48]} 7. Bb5+ {[%clk 0:02:52]}  Nc6 {[%clk 0:02:45]} 8. Nge2 {[%clk 0:02:41]}  Be7 {[%clk 0:02:29]} 9. Be3 {[%clk 0:01:53]}  O-O {[%clk 0:02:19]} 10. Bxc6 {[%clk 0:01:46]}  bxc6 {[%clk 0:02:19]} 11. dxc5 {[%clk 0:01:22]}  Nxc5 {[%clk 0:01:26]} 12. O-O {[%clk 0:01:08]}  Ne6 {[%clk 0:01:23]} 13. Rad1 {[%clk 0:00:44]}  Qe8 {[%clk 0:01:18]} 14. Nd4 {[%clk 0:00:32]}  Nxd4 {[%clk 0:01:17]} 15. Bxd4 {[%clk 0:00:33]}  Be6 {[%clk 0:01:17]} 16. Qe3 {[%clk 0:00:29]}  Qb8 {[%clk 0:01:00]} 17. Na4 {[%clk 0:00:29]}  Re8 {[%clk 0:00:48]} 18. b3 {[%clk 0:00:28]}  h6 {[%clk 0:00:41]} 19. Rde1 {[%clk 0:00:25]}  Qc7 {[%clk 0:00:36]} 20. Bc5 {[%clk 0:00:21]}  Bg5 {[%clk 0:00:33]} 21. Qd4 {[%clk 0:00:20]}  f4 {[%clk 0:00:24]} 22. Bd6 {[%clk 0:00:20]}  Qf7 {[%clk 0:00:23]} 23. h4 {[%clk 0:00:17]}  Bxh4 {[%clk 0:00:17]} 24. Rxf4 {[%clk 0:00:18]}  Qxf4 {[%clk 0:00:18]} 25. Qxf4 {[%clk 0:00:17]}  Bxe1 {[%clk 0:00:19]} 26. Nc5 {[%clk 0:00:17]}  Bb4 {[%clk 0:00:16]} 27. Nb7 {[%clk 0:00:13]}  Bxd6 {[%clk 0:00:16]} 28. Nxd6 {[%clk 0:00:14]}  Re7 {[%clk 0:00:16]} 29. Qa4 {[%clk 0:00:14]}  Bd7 {[%clk 0:00:10]} 30. Qd4 {[%clk 0:00:07]}  Rf8 {[%clk 0:00:09]} 31. c4 {[%clk 0:00:06]}  Be6 {[%clk 0:00:09]} 32. c5 {[%clk 0:00:03]}  Bd7 {[%clk 0:00:05]} 33. b4 {[%clk 0:00:04]}  g5 {[%clk 0:00:05]} 34. a4 {[%clk 0:00:04]}  Rf4 {[%clk 0:00:05]} 35. Qd2 {[%clk 0:00:04]}  Rxe5 {[%clk 0:00:05]} 36. b5 {[%clk 0:00:03]}  Rxa4 {[%clk 0:00:05]} 37. b6 {[%clk 0:00:03]}  axb6 {[%clk 0:00:05]} 38. cxb6 {[%clk 0:00:04]}  Ra1+ {[%clk 0:00:05]} 39. Kh2 {[%clk 0:00:03]}  Rb1 {[%clk 0:00:06]} 40. Qc3 {[%clk 0:00:02]}  Re6 {[%clk 0:00:06]} 41. Qc5 {[%clk 0:00:01]}  h5 {[%clk 0:00:04]} 42. b7 {[%clk 0:00:02]}  h4 {[%clk 0:00:04]} 43. Qa7 {[%clk 0:00:03]}  Ree1 {[%clk 0:00:04]} 44. Qb8+ {[%clk 0:00:00]}  Kh7 {[%clk 0:00:03]} 0-1

[Event "December 12 Late 2023"]
[Site "https://www.chess.com"]
[Date "2023.12.12"]
[Round "2"]
[White "Awoki, Daniel Teidi"]
[Black "Brodowski, Piotr"]
[Result "0-1"]
[Board "69"]
[TimeControl "180+1"]
[WhiteFideId "2100827"]
[BlackFideId "1124480"]
[WhiteElo "2250"]
[BlackElo "2689"]
[WhiteTeam "BRA"]
[BlackTeam "POL"]
[WhiteClock "0:00:11"]
[BlackClock "0:01:34"]

1. e4 {[%clk 0:03:00]}  g6 {[%clk 0:02:50]} 2. d4 {[%clk 0:02:59]}  Bg7 {[%clk 0:02:50]} 3. Nc3 {[%clk 0:03:00]}  d6 {[%clk 0:02:51]} 4. Be3 {[%clk 0:03:00]}  a6 {[%clk 0:02:50]} 5. a4 {[%clk 0:03:00]}  Nc6 {[%clk 0:02:48]} 6. h3 {[%clk 0:02:57]}  Nf6 {[%clk 0:02:44]} 7. Nf3 {[%clk 0:02:57]}  O-O {[%clk 0:02:43]} 8. e5 {[%clk 0:02:54]}  Nd7 {[%clk 0:02:36]} 9. exd6 {[%clk 0:02:24]}  cxd6 {[%clk 0:02:31]} 10. Bc4 {[%clk 0:02:17]}  Nb6 {[%clk 0:02:15]} 11. Ba2 {[%clk 0:02:13]}  Nb4 {[%clk 0:02:15]} 12. Qd2 {[%clk 0:02:10]}  Nxa2 {[%clk 0:02:15]} 13. Nxa2 {[%clk 0:02:07]}  Nc4 {[%clk 0:02:15]} 14. Qc1 {[%clk 0:02:06]}  Nxe3 {[%clk 0:02:11]} 15. Qxe3 {[%clk 0:02:07]}  Qb6 {[%clk 0:02:06]} 16. b3 {[%clk 0:01:57]}  e5 {[%clk 0:02:03]} 17. dxe5 {[%clk 0:01:49]}  Qxe3+ {[%clk 0:02:02]} 18. fxe3 {[%clk 0:01:49]}  dxe5 {[%clk 0:02:03]} 19. e4 {[%clk 0:01:44]}  f5 {[%clk 0:02:01]} 20. Nc3 {[%clk 0:01:41]}  Bd7 {[%clk 0:01:52]} 21. O-O-O {[%clk 0:01:34]}  Bc6 {[%clk 0:01:52]} 22. exf5 {[%clk 0:01:30]}  gxf5 {[%clk 0:01:50]} 23. Nd5 {[%clk 0:01:21]}  Rae8 {[%clk 0:01:49]} 24. Rhe1 {[%clk 0:01:07]}  e4 {[%clk 0:01:49]} 25. Ng1 {[%clk 0:00:41]}  f4 {[%clk 0:01:47]} 26. Ne2 {[%clk 0:00:16]}  f3 {[%clk 0:01:39]} 27. gxf3 {[%clk 0:00:17]}  exf3 {[%clk 0:01:39]} 28. Ng3 {[%clk 0:00:12]}  Rxe1 {[%clk 0:01:34]} 29. Rxe1 {[%clk 0:00:11]}  Bxd5 {[%clk 0:01:34]} 0-1

[Event "December 12 Late 2023"]
[Site "https://www.chess.com"]
[Date "2023.12.12"]
[Round "2"]
[White "Bullen, Alex"]
[Black "Krallis, Christos"]
[Result "0-1"]
[Board "71"]
[TimeControl "180+1"]
[WhiteFideId "1801627"]
[BlackFideId "4298896"]
[WhiteElo "2216"]
[BlackElo "2673"]
[WhiteTeam "WLS"]
[BlackTeam "GRE"]
[WhiteClock "0:00:33"]
[BlackClock "0:00:50"]

1. e4 {[%clk 0:03:00]}  e5 {[%clk 0:02:56]} 2. Bc4 {[%clk 0:02:59]}  Nf6 {[%clk 0:02:56]} 3. d3 {[%clk 0:02:59]}  Be7 {[%clk 0:02:54]} 4. f4 {[%clk 0:02:58]}  Nc6 {[%clk 0:02:52]} 5. Nf3 {[%clk 0:02:58]}  d6 {[%clk 0:02:52]} 6. c3 {[%clk 0:02:49]}  O-O {[%clk 0:02:51]} 7. O-O {[%clk 0:02:47]}  Bg4 {[%clk 0:02:34]} 8. Qe1 {[%clk 0:02:39]}  a6 {[%clk 0:02:25]} 9. f5 {[%clk 0:02:36]}  Bxf3 {[%clk 0:02:17]} 10. Rxf3 {[%clk 0:02:35]}  Na5 {[%clk 0:02:17]} 11. Nd2 {[%clk 0:02:32]}  b5 {[%clk 0:02:03]} 12. Bb3 {[%clk 0:02:31]}  Nxb3 {[%clk 0:02:02]} 13. axb3 {[%clk 0:02:30]}  d5 {[%clk 0:02:02]} 14. b4 {[%clk 0:02:24]}  c5 {[%clk 0:01:58]} 15. bxc5 {[%clk 0:02:20]}  Bxc5+ {[%clk 0:01:58]} 16. Kh1 {[%clk 0:02:21]}  Bb6 {[%clk 0:01:49]} 17. exd5 {[%clk 0:02:10]}  Qxd5 {[%clk 0:01:49]} 18. Ne4 {[%clk 0:02:10]}  Nxe4 {[%clk 0:01:28]} 19. dxe4 {[%clk 0:02:05]}  Qc4 {[%clk 0:01:26]} 20. f6 {[%clk 0:02:00]}  g6 {[%clk 0:01:19]} 21. Rh3 {[%clk 0:01:50]}  Rfd8 {[%clk 0:01:13]} 22. Bg5 {[%clk 0:01:20]}  h5 {[%clk 0:00:58]} 23. Rxh5 {[%clk 0:01:08]}  gxh5 {[%clk 0:00:55]} 24. Qh4 {[%clk 0:00:46]}  Qe2 {[%clk 0:00:52]} 25. h3 {[%clk 0:00:39]}  Rd1+ {[%clk 0:00:49]} 26. Rxd1 {[%clk 0:00:37]}  Qxd1+ {[%clk 0:00:50]} 27. Kh2 {[%clk 0:00:36]}  Qg1+ {[%clk 0:00:50]} 28. Kg3 {[%clk 0:00:33]}  Bf2+ {[%clk 0:00:50]} 0-1

[Event "December 12 Late 2023"]
[Site "https://www.chess.com"]
[Date "2023.12.12"]
[Round "2"]
[White "Goryachkina, Aleksandra"]
[Black "BestestBP"]
[Result "1-0"]
[Board "73"]
[TimeControl "180+1"]
[WhiteFideId "4147103"]
[WhiteElo "2666"]
[BlackElo "2160"]
[WhiteTeam "FID"]
[WhiteClock "0:00:14"]
[BlackClock "0:00:08"]

1. e4 {[%clk 0:02:59]}  e5 {[%clk 0:03:00]} 2. Nf3 {[%clk 0:02:59]}  Nc6 {[%clk 0:03:00]} 3. Bc4 {[%clk 0:02:59]}  Nf6 {[%clk 0:02:58]} 4. d3 {[%clk 0:03:00]}  h6 {[%clk 0:02:58]} 5. c3 {[%clk 0:02:58]}  d6 {[%clk 0:02:58]} 6. Nbd2 {[%clk 0:02:55]}  g6 {[%clk 0:02:52]} 7. O-O {[%clk 0:02:50]}  Bg7 {[%clk 0:02:52]} 8. b4 {[%clk 0:02:48]}  a6 {[%clk 0:02:52]} 9. a4 {[%clk 0:02:48]}  O-O {[%clk 0:02:52]} 10. Re1 {[%clk 0:02:39]}  Be6 {[%clk 0:02:52]} 11. Qb3 {[%clk 0:02:36]}  d5 {[%clk 0:02:44]} 12. exd5 {[%clk 0:02:33]}  Nxd5 {[%clk 0:02:40]} 13. Qc2 {[%clk 0:02:17]}  Nf4 {[%clk 0:02:18]} 14. Bxe6 {[%clk 0:02:16]}  Nxe6 {[%clk 0:02:19]} 15. Nc4 {[%clk 0:02:13]}  Qd5 {[%clk 0:02:11]} 16. Ba3 {[%clk 0:01:22]}  Rfd8 {[%clk 0:02:02]} 17. Rad1 {[%clk 0:01:22]}  b5 {[%clk 0:01:44]} 18. Ne3 {[%clk 0:01:20]}  Qd7 {[%clk 0:01:44]} 19. Bb2 {[%clk 0:01:09]}  Nf4 {[%clk 0:01:41]} 20. d4 {[%clk 0:01:05]}  exd4 {[%clk 0:01:35]} 21. Nxd4 {[%clk 0:01:05]}  Bxd4 {[%clk 0:01:29]} 22. cxd4 {[%clk 0:01:04]}  Nxb4 {[%clk 0:01:29]} 23. Qd2 {[%clk 0:00:27]}  Nbd3 {[%clk 0:01:20]} 24. d5 {[%clk 0:00:23]}  Nxb2 {[%clk 0:01:09]} 25. Qxb2 {[%clk 0:00:23]}  h5 {[%clk 0:00:41]} 26. Qd4 {[%clk 0:00:22]}  Qd6 {[%clk 0:00:35]} 27. g3 {[%clk 0:00:21]}  Nh3+ {[%clk 0:00:34]} 28. Kg2 {[%clk 0:00:21]}  Ng5 {[%clk 0:00:35]} 29. h4 {[%clk 0:00:19]}  Ne6 {[%clk 0:00:21]} 30. Qb2 {[%clk 0:00:14]}  Nc5 {[%clk 0:00:20]} 31. axb5 {[%clk 0:00:13]}  axb5 {[%clk 0:00:20]} 32. Qxb5 {[%clk 0:00:13]}  Rdb8 {[%clk 0:00:17]} 33. Qc6 {[%clk 0:00:12]}  Qxc6 {[%clk 0:00:11]} 34. dxc6 {[%clk 0:00:13]}  Ra6 {[%clk 0:00:11]} 35. Nd5 {[%clk 0:00:14]}  Kf8 {[%clk 0:00:10]} 36. Nxc7 {[%clk 0:00:08]}  Rxc6 {[%clk 0:00:10]} 37. Nd5 {[%clk 0:00:08]}  Re8 {[%clk 0:00:05]} 38. Rxe8+ {[%clk 0:00:08]}  Kxe8 {[%clk 0:00:06]} 39. Rc1 {[%clk 0:00:08]}  Kd7 {[%clk 0:00:04]} 40. Nb4 {[%clk 0:00:08]}  Rc8 {[%clk 0:00:03]} 41. Rd1+ {[%clk 0:00:07]}  Ke7 {[%clk 0:00:03]} 42. Rc1 {[%clk 0:00:07]}  Kd7 {[%clk 0:00:03]} 43. Rd1+ {[%clk 0:00:07]}  Ke7 {[%clk 0:00:03]} 44. Nd5+ {[%clk 0:00:07]}  Kf8 {[%clk 0:00:03]} 45. Rc1 {[%clk 0:00:07]}  Ke8 {[%clk 0:00:02]} 46. Nb6 {[%clk 0:00:06]}  Rc6 {[%clk 0:00:02]} 47. Na4 {[%clk 0:00:06]}  Nxa4 {[%clk 0:00:01]} 48. Rxc6 {[%clk 0:00:06]}  Nb2 {[%clk 0:00:02]} 49. Rc3 {[%clk 0:00:05]}  Na4 {[%clk 0:00:02]} 50. Re3+ {[%clk 0:00:05]}  Kf8 {[%clk 0:00:02]} 51. Re5 {[%clk 0:00:06]}  Nc3 {[%clk 0:00:02]} 52. Kf3 {[%clk 0:00:06]}  Na4 {[%clk 0:00:02]} 53. Kf4 {[%clk 0:00:06]}  Nb6 {[%clk 0:00:03]} 54. Rc5 {[%clk 0:00:06]}  Nd7 {[%clk 0:00:03]} 55. Rc7 {[%clk 0:00:06]}  Nf6 {[%clk 0:00:02]} 56. Rc8+ {[%clk 0:00:06]}  Kg7 {[%clk 0:00:03]} 57. f3 {[%clk 0:00:07]}  Nd5+ {[%clk 0:00:02]} 58. Ke5 {[%clk 0:00:07]}  Nb4 {[%clk 0:00:01]} 59. Ra8 {[%clk 0:00:06]}  Nd3+ {[%clk 0:00:02]} 60. Ke4 {[%clk 0:00:06]}  Nc5+ {[%clk 0:00:02]} 61. Kd4 {[%clk 0:00:06]}  Ne6+ {[%clk 0:00:02]} 62. Ke5 {[%clk 0:00:06]}  Nc5 {[%clk 0:00:02]} 63. Rc8 {[%clk 0:00:06]}  Nd3+ {[%clk 0:00:02]} 64. Ke4 {[%clk 0:00:06]}  Nb4 {[%clk 0:00:02]} 65. Rc4 {[%clk 0:00:06]}  Na6 {[%clk 0:00:02]} 66. Kd5 {[%clk 0:00:06]}  Nb8 {[%clk 0:00:01]} 67. Kd6 {[%clk 0:00:07]}  Na6 {[%clk 0:00:01]} 68. Ra4 {[%clk 0:00:07]}  Nb8 {[%clk 0:00:01]} 69. Ra8 {[%clk 0:00:07]}  g5 {[%clk 0:00:01]} 70. Rxb8 {[%clk 0:00:08]}  gxh4 {[%clk 0:00:02]} 71. gxh4 {[%clk 0:00:08]}  Kg6 {[%clk 0:00:02]} 72. Ke5 {[%clk 0:00:09]}  f6+ {[%clk 0:00:02]} 73. Kf4 {[%clk 0:00:09]}  f5 {[%clk 0:00:03]} 74. Rb6+ {[%clk 0:00:10]}  Kh7 {[%clk 0:00:03]} 75. Kxf5 {[%clk 0:00:10]}  Kg7 {[%clk 0:00:04]} 76. Kg5 {[%clk 0:00:11]}  Kh7 {[%clk 0:00:05]} 77. f4 {[%clk 0:00:11]}  Kg7 {[%clk 0:00:06]} 78. f5 {[%clk 0:00:12]}  Kf7 {[%clk 0:00:06]} 79. Rb7+ {[%clk 0:00:12]}  Kf8 {[%clk 0:00:06]} 80. Kg6 {[%clk 0:00:13]}  Ke8 {[%clk 0:00:07]} 81. f6 {[%clk 0:00:13]}  Kd8 {[%clk 0:00:07]} 82. f7 {[%clk 0:00:13]}  Kc8 {[%clk 0:00:08]} 83. Re7 {[%clk 0:00:13]}  Kb8 {[%clk 0:00:08]} 84. f8=Q# {[%clk 0:00:14]} 1-0